[Event "1st SOA-GM Festival 2024"]
[Site "Bhubaneswar"]
[Date "2024.02.01"]
[Round "7.13"]
[White "Liyanage, Ranindu Dilshan"]
[Black "Mahindrakar Indrajeet"]
[Result "1-0"]
[ECO "A06"]
[WhiteElo "2366"]
[BlackElo "2039"]
[Annotator "ChessBase"]
[PlyCount "97"]
[EventDate "2024.02.01"]
[EventType "swiss"]
[EventCountry "IND"]
[SourceTitle "playchess.com"]
[Source "ChessBase"]
[SourceQuality "1"]
[TimeControl "5400+30"]

1. Nf3 {[%emt 0:00:14]} Nf6 {[%emt 0:03:53]} 2. b3 {[%emt 0:00:12]} d5 {[%emt 0:06:45]} 3. e3 {[%emt 0:00:47]} Bg4 {[%emt 0:01:15]} 4. Bb2 {[%emt 0:01:07]} Nbd7 {[%emt 0:00:47]} 5. h3 {[%emt 0:04:03]} Bxf3 {[%emt 0:02:40]} 6. Qxf3 {[%emt 0:01:47]} e6 {[%emt 0:01:22]} 7. g3 {[%emt 0:07:11]} Bd6 {[%emt 0:01:04]} 8. Bg2 {[%emt 0:00:32]} Qe7 {[%emt 0:00:26]} 9. a3 {[%emt 0:01:47]} c6 {[%emt 0:05:25]} 10. d3 {[%emt 0:01:08]} O-O-O {[%emt 0:11:00]} 11. Nd2 {[%emt 0:01:37]} Kb8 {[%emt 0:08:01]} 12. b4 {[%emt 0:03:52]} h5 {[%emt 0:05:16]} 13. Qe2 {[%emt 0:07:33]} Nb6 {[%emt 0:07:32]} 14. Rb1 {[%emt 0:02:34]} h4 {[%emt 0:07:36]} 15. g4 {[%emt 0:00:31]} Nfd7 {[%emt 0:00:31]} 16. c4 {[%emt 0:03:29]} dxc4 {[%emt 0:02:47]} 17. dxc4 {[%emt 0:01:18]} Be5 {[%emt 0:03:47]} 18. O-O {[%emt 0:10:22]} f5 {[%emt 0:05:22]} 19. b5 {[%emt 0:16:20]} Bxb2 {[%emt 0:03:29]} 20. Rxb2 {[%emt 0:02:46]} Ne5 {[%emt 0:10:00]} 21. gxf5 {[%emt 0:03:00]} Nd3 {[%emt 0:05:22]} 22. Rc2 {[%emt 0:02:49]} Ne5 {[%emt 0:07:10]} 23. Rb2 {[%emt 0:00:00]} Nd3 {[%emt 0:00:00]} 24. Rc2 {[%emt 0:01:00]} exf5 {[%emt 0:00:00]} 25. Qf3 {[%emt 0:04:10]} cxb5 {[%emt 0:00:44]} 26. cxb5 {[%emt 0:07:15]} Rd5 {[%emt 0:00:02]} 27. a4 {[%emt 0:01:30]} Rhd8 {[%emt 0:00:01]} 28. Nb3 {[%emt 0:01:14]} Nxa4 {[%emt 0:01:14]} 29. Nd4 {[%emt 0:01:58]} g6 {[%emt 0:00:02]} 30. Ra1 {[%emt 0:01:43]} Nb6 {[%emt 0:01:15]} 31. Rca2 {[%emt 0:00:04]} Nc8 {[%emt 0:00:30]} 32. b6 {[%emt 0:01:35]} Nxb6 {[%emt 0:00:35]} 33. Rxa7 {[%emt 0:00:13]} Qe5 {[%emt 0:00:32]} 34. Qe2 {[%emt 0:02:34]} Nc5 {[%emt 0:00:02]} 35. Qb2 {[%emt 0:00:55]} R8d6 {[%emt 0:00:55]} 36. Bxd5 {[%emt 0:01:37]} Qxd5 {[%emt 0:00:18]} 37. Nb5 {[%emt 0:00:08]} Rd8 {[%emt 0:00:39]} 38. Nd4 {[%emt 0:00:00]} Rd6 {[%emt 0:00:21]} 39. Nb5 {[%emt 0:01:00]} Rd8 {[%emt 0:00:39]} 40. Nd4 {[%emt 0:00:00]} Rd6 {[%emt 0:00:21]} 41. Nb5 {[%emt 0:01:00]} Rd8 {[%emt 0:00:39]} 42. Qf6 {[%emt 0:01:38]} Nca4 {[%emt 0:00:34]} 43. Nd4 {[%emt 0:00:00]} Nc5 {[%emt 0:00:26]} 44. Nb5 {[%emt 0:01:00]} Nca4 {[%emt 0:00:34]} 45. R7xa4 {[%emt 0:01:59]} Nxa4 {[%emt 0:00:24]} 46. Rxa4 {[%emt 0:00:07]} Rc8 {[%emt 0:00:38]} 47. Ra8+ {[%emt 0:00:43]} Kxa8 {[%emt 0:00:18]} 48. Qa1+ {[%emt 0:00:04]} Kb8 {[%emt 0:00:46]} 49. Qa7# {[%emt 0:00:05]} 1-0

[Event "1st SOA-GM Festival 2024"]
[Site "Bhubaneswar"]
[Date "2024.02.01"]
[Round "7.14"]
[White "Laxman, R.R."]
[Black "Barath Kalyan M"]
[Result "1-0"]
[ECO "E63"]
[WhiteElo "2338"]
[BlackElo "2040"]
[Annotator "ChessBase"]
[PlyCount "129"]
[EventDate "2024.02.01"]
[EventType "swiss"]
[EventCountry "IND"]
[SourceTitle "playchess.com"]
[Source "ChessBase"]
[SourceQuality "1"]
[TimeControl "5400+30"]

1. d4 {[%emt 0:00:03]} Nf6 {[%emt 0:00:41]} 2. c4 {[%emt 0:00:07]} g6 {[%emt 0:00:09]} 3. Nf3 {[%emt 0:00:28]} Bg7 {[%emt 0:00:05]} 4. g3 {[%emt 0:00:23]} O-O {[%emt 0:00:07]} 5. Bg2 {[%emt 0:00:03]} d6 {[%emt 0:00:14]} 6. O-O {[%emt 0:00:09]} Nc6 {[%emt 0:00:53]} 7. Nc3 {[%emt 0:00:22]} a6 {[%emt 0:00:05]} 8. b3 {[%emt 0:00:11]} Bd7 {[%emt 0:01:13]} 9. Bb2 {[%emt 0:01:58]} Re8 {[%emt 0:00:27]} 10. Rc1 {[%emt 0:02:16]} Rb8 {[%emt 0:00:49]} 11. a3 {[%emt 0:02:25]} e5 {[%emt 0:03:06]} 12. d5 {[%emt 0:00:09]} Ne7 {[%emt 0:06:06]} 13. Nd2 {[%emt 0:06:05]} c5 {[%emt 0:04:44]} 14. dxc6 {[%emt 0:00:42]} bxc6 {[%emt 0:13:59]} 15. c5 {[%emt 0:00:23]} d5 {[%emt 0:02:01]} 16. Na4 {[%emt 0:00:15]} Nc8 {[%emt 0:00:25]} 17. e4 {[%emt 0:00:31]} Bg4 {[%emt 0:04:04]} 18. f3 {[%emt 0:03:14]} Bd7 {[%emt 0:01:48]} 19. exd5 {[%emt 0:03:00]} Nxd5 {[%emt 0:00:34]} 20. Nc4 {[%emt 0:00:02]} h5 {[%emt 0:01:14]} 21. Re1 {[%emt 0:00:36]} Qg5 {[%emt 0:10:00]} 22. Nc3 {[%emt 0:00:14]} h4 {[%emt 0:02:38]} 23. Ne4 {[%emt 0:01:27]} Qd8 {[%emt 0:07:34]} 24. b4 {[%emt 0:00:37]} f5 {[%emt 0:02:56]} 25. Ned6 {[%emt 0:00:28]} Nxd6 {[%emt 0:00:09]} 26. Nxd6 {[%emt 0:04:07]} Re6 {[%emt 0:01:33]} 27. f4 {[%emt 0:00:44]} hxg3 {[%emt 0:14:05]} 28. hxg3 {[%emt 0:00:14]} e4 {[%emt 0:04:02]} 29. Bxg7 {[%emt 0:00:05]} Kxg7 {[%emt 0:00:05]} 30. Qd4+ {[%emt 0:00:10]} Qf6 {[%emt 0:00:31]} 31. Qxf6+ {[%emt 0:00:06]} Kxf6 {[%emt 0:00:04]} 32. Bf1 {[%emt 0:00:09]} Ra8 {[%emt 0:01:08]} 33. Bc4 {[%emt 0:00:05]} Rxd6 {[%emt 0:10:31]} 34. cxd6 {[%emt 0:00:03]} Ke6 {[%emt 0:00:05]} 35. Kf2 {[%emt 0:02:06]} Kxd6 {[%emt 0:00:10]} 36. Rh1 {[%emt 0:00:24]} Be6 {[%emt 0:01:33]} 37. Rh6 {[%emt 0:00:29]} Rg8 {[%emt 0:01:08]} 38. Bxa6 {[%emt 0:00:25]} Nf6 {[%emt 0:01:24]} 39. Be2 {[%emt 0:00:37]} Nd5 {[%emt 0:01:10]} 40. Rc5 {[%emt 0:00:59]} g5 {[%emt 0:01:26]} 41. Rxc6+ {[%emt 0:06:12]} Kxc6 {[%emt 0:00:05]} 42. Rxe6+ {[%emt 0:00:01]} Kd7 {[%emt 0:00:23]} 43. Re5 {[%emt 0:00:07]} Ne7 {[%emt 0:00:34]} 44. g4 {[%emt 0:03:00]} Ng6 {[%emt 0:05:53]} 45. Rd5+ {[%emt 0:01:15]} Kc6 {[%emt 0:00:30]} 46. Rc5+ {[%emt 0:00:47]} Kd6 {[%emt 0:00:01]} 47. Bc4 {[%emt 0:01:07]} Ra8 {[%emt 0:00:59]} 48. Rxf5 {[%emt 0:00:11]} Nxf4 {[%emt 0:00:17]} 49. Ke3 {[%emt 0:00:46]} Rxa3+ {[%emt 0:00:36]} 50. Kxe4 {[%emt 0:00:02]} Ra4 {[%emt 0:00:10]} 51. Rb5 {[%emt 0:00:07]} Kc6 {[%emt 0:00:45]} 52. Kf5 {[%emt 0:02:02]} Ng2 {[%emt 0:00:28]} 53. Ke4 {[%emt 0:00:55]} Nf4 {[%emt 0:00:17]} 54. Kd4 {[%emt 0:01:46]} Nh3 {[%emt 0:01:02]} 55. Rc5+ {[%emt 0:00:27]} Kb6 {[%emt 0:00:30]} 56. b5 {[%emt 0:00:15]} Ra3 {[%emt 0:00:24]} 57. Rc6+ {[%emt 0:00:06]} Kb7 {[%emt 0:00:01]} 58. Bd5 {[%emt 0:00:25]} Kb8 {[%emt 0:00:32]} 59. Rg6 {[%emt 0:00:40]} Ra1 {[%emt 0:00:51]} 60. Kc5 {[%emt 0:01:39]} Rd1 {[%emt 0:00:42]} 61. Rg8+ {[%emt 0:00:10]} Kc7 {[%emt 0:00:01]} 62. b6+ {[%emt 0:00:10]} Kd7 {[%emt 0:00:06]} 63. b7 {[%emt 0:00:09]} Rc1+ {[%emt 0:00:11]} 64. Bc4 {[%emt 0:00:06]} Nf4 {[%emt 0:01:16]} 65. Rg7+ {[%emt 0:00:02]} 1-0

[Event "1st SOA-GM Festival 2024"]
[Site "Bhubaneswar"]
[Date "2024.02.01"]
[Round "7.15"]
[White "Roy Chowdhury, Saptarshi"]
[Black "Abhay Bandewar"]
[Result "1/2-1/2"]
[ECO "B31"]
[WhiteElo "2233"]
[BlackElo "2025"]
[Annotator "ChessBase"]
[PlyCount "66"]
[EventDate "2024.02.01"]
[EventType "swiss"]
[EventCountry "IND"]
[SourceTitle "playchess.com"]
[Source "ChessBase"]
[SourceQuality "1"]
[TimeControl "5400+30"]

1. e4 {[%emt 0:00:18]} c5 {[%emt 0:00:06]} 2. Nf3 {[%emt 0:00:04]} Nc6 {[%emt 0:00:05]} 3. Bb5 {[%emt 0:00:09]} g6 {[%emt 0:00:18]} 4. d3 {[%emt 0:00:12]} Bg7 {[%emt 0:00:57]} 5. O-O {[%emt 0:01:14]} e5 {[%emt 0:07:35]} 6. Be3 {[%emt 0:02:51]} Nd4 {[%emt 0:01:45]} 7. Bc4 {[%emt 0:00:08]} d6 {[%emt 0:11:44]} 8. c3 {[%emt 0:04:01]} Nxf3+ {[%emt 0:03:25]} 9. Qxf3 {[%emt 0:00:04]} Be6 {[%emt 0:01:18]} 10. Bxe6 {[%emt 0:06:24]} fxe6 {[%emt 0:00:08]} 11. Qh3 {[%emt 0:00:01]} Qd7 {[%emt 0:02:55]} 12. Nd2 {[%emt 0:00:13]} Nf6 {[%emt 0:00:59]} 13. d4 {[%emt 0:02:05]} exd4 {[%emt 0:04:15]} 14. cxd4 {[%emt 0:01:49]} cxd4 {[%emt 0:01:25]} 15. Bxd4 {[%emt 0:00:05]} e5 {[%emt 0:03:25]} 16. Qxd7+ {[%emt 0:00:05]} Kxd7 {[%emt 0:00:28]} 17. Bc3 {[%emt 0:00:06]} Bh6 {[%emt 0:02:52]} 18. Rfe1 {[%emt 0:10:51]} Bxd2 {[%emt 0:02:26]} 19. Bxd2 {[%emt 0:00:05]} Rac8 {[%emt 0:01:15]} 20. Bc3 {[%emt 0:00:05]} Rc4 {[%emt 0:01:26]} 21. f3 {[%emt 0:00:05]} Rhc8 {[%emt 0:01:43]} 22. Re2 {[%emt 0:00:11]} Ke6 {[%emt 0:02:18]} 23. Rd1 {[%emt 0:00:47]} R8c6 {[%emt 0:02:02]} 24. a3 {[%emt 0:02:09]} b6 {[%emt 0:06:11]} 25. Kf2 {[%emt 0:01:47]} Nd7 {[%emt 0:01:00]} 26. h4 {[%emt 0:07:23]} a5 {[%emt 0:08:23]} 27. g4 {[%emt 0:02:42]} Nc5 {[%emt 0:00:43]} 28. Rd5 {[%emt 0:03:13]} Na4 {[%emt 0:09:41]} 29. Bxe5 {[%emt 0:05:18]} dxe5 {[%emt 0:00:19]} 30. b3 {[%emt 0:00:01]} Rc3 {[%emt 0:03:47]} 31. bxa4 {[%emt 0:00:26]} Rxa3 {[%emt 0:00:10]} 32. Rb2 {[%emt 0:02:15]} Rxa4 {[%emt 0:00:41]} 33. Rdb5 {[%emt 0:04:52]} Rac4 {[%emt 0:05:07]} 1/2-1/2

[Event "1st SOA-GM Festival 2024"]
[Site "Bhubaneswar"]
[Date "2024.02.01"]
[Round "7.16"]
[White "Frayna, Janelle Mae"]
[Black "Sharnarthi Viresh"]
[Result "1-0"]
[ECO "E63"]
[WhiteElo "2197"]
[BlackElo "1926"]
[Annotator "ChessBase"]
[PlyCount "121"]
[EventDate "2024.02.01"]
[EventType "swiss"]
[EventCountry "IND"]
[SourceTitle "playchess.com"]
[Source "ChessBase"]
[SourceQuality "1"]
[TimeControl "5400+30"]

1. Nf3 {[%emt 0:00:12]} Nf6 {[%emt 0:00:06]} 2. c4 {[%emt 0:00:11]} g6 {[%emt 0:00:04]} 3. g3 {[%emt 0:00:03]} Bg7 {[%emt 0:00:04]} 4. Bg2 {[%emt 0:00:37]} O-O {[%emt 0:00:11]} 5. O-O {[%emt 0:00:58]} d6 {[%emt 0:00:16]} 6. d4 {[%emt 0:02:34]} Nc6 {[%emt 0:00:05]} 7. Nc3 {[%emt 0:00:04]} a6 {[%emt 0:00:14]} 8. b3 {[%emt 0:00:05]} Rb8 {[%emt 0:00:03]} 9. d5 {[%emt 0:00:12]} Na5 {[%emt 0:00:17]} 10. Bg5 {[%emt 0:00:08]} c5 {[%emt 0:00:24]} 11. dxc6 {[%emt 0:00:05]} Nxc6 {[%emt 0:00:05]} 12. Rc1 {[%emt 0:00:12]} Bd7 {[%emt 0:00:54]} 13. Qd2 {[%emt 0:05:12]} b5 {[%emt 0:01:28]} 14. Rfd1 {[%emt 0:09:31]} b4 {[%emt 0:28:51]} 15. Bxf6 {[%emt 0:00:09]} Bxf6 {[%emt 0:00:02]} 16. Nd5 {[%emt 0:00:05]} Bg7 {[%emt 0:00:35]} 17. c5 {[%emt 0:01:57]} dxc5 {[%emt 0:01:36]} 18. Nxe7+ {[%emt 0:02:21]} Qxe7 {[%emt 0:00:53]} 19. Qxd7 {[%emt 0:00:04]} Qxd7 {[%emt 0:00:09]} 20. Rxd7 {[%emt 0:00:02]} Bc3 {[%emt 0:00:01]} 21. e3 {[%emt 0:06:55]} Rfd8 {[%emt 0:00:33]} 22. Rcd1 {[%emt 0:00:20]} Bf6 {[%emt 0:11:00]} 23. Bf1 {[%emt 0:01:41]} a5 {[%emt 0:01:34]} 24. Bc4 {[%emt 0:00:07]} Be7 {[%emt 0:00:23]} 25. R1d2 {[%emt 0:07:30]} Kf8 {[%emt 0:03:02]} 26. Kf1 {[%emt 0:08:01]} Ke8 {[%emt 0:00:45]} 27. Rc7 {[%emt 0:01:29]} Ne5 {[%emt 0:00:06]} 28. Rxe7+ {[%emt 0:04:05]} Kxe7 {[%emt 0:00:08]} 29. Rxd8 {[%emt 0:00:02]} Rxd8 {[%emt 0:00:06]} 30. Nxe5 {[%emt 0:00:03]} Rd1+ {[%emt 0:00:05]} 31. Kg2 {[%emt 0:00:17]} Kd6 {[%emt 0:04:45]} 32. Nxf7+ {[%emt 0:02:58]} Kc7 {[%emt 0:00:04]} 33. Ne5 {[%emt 0:06:21]} Rd2 {[%emt 0:00:51]} 34. Bb5 {[%emt 0:01:03]} Rxa2 {[%emt 0:03:45]} 35. Nc4 {[%emt 0:00:57]} Kd8 {[%emt 0:02:46]} 36. h4 {[%emt 0:01:55]} Ke7 {[%emt 0:00:06]} 37. e4 {[%emt 0:01:24]} Re2 {[%emt 0:00:44]} 38. Kf3 {[%emt 0:00:41]} Rc2 {[%emt 0:00:03]} 39. Nxa5 {[%emt 0:03:24]} Kd6 {[%emt 0:00:09]} 40. Bd3 {[%emt 0:01:23]} Rc3 {[%emt 0:00:23]} 41. Ke3 {[%emt 0:00:06]} Kc7 {[%emt 0:00:51]} 42. Kd2 {[%emt 0:02:00]} Kd6 {[%emt 0:01:37]} 43. f4 {[%emt 0:00:23]} c4 {[%emt 0:01:19]} 44. Nxc4+ {[%emt 0:02:10]} Kc5 {[%emt 0:00:05]} 45. Ke3 {[%emt 0:00:44]} Rxb3 {[%emt 0:00:07]} 46. e5 {[%emt 0:00:33]} Kd5 {[%emt 0:01:03]} 47. Nb6+ {[%emt 0:01:50]} Kc5 {[%emt 0:00:23]} 48. Nc4 {[%emt 0:00:58]} Kd5 {[%emt 0:00:01]} 49. g4 {[%emt 0:02:11]} Rc3 {[%emt 0:00:09]} 50. f5 {[%emt 0:02:00]} gxf5 {[%emt 0:00:13]} 51. gxf5 {[%emt 0:00:04]} Rc1 {[%emt 0:00:16]} 52. e6 {[%emt 0:00:50]} Ra1 {[%emt 0:00:09]} 53. e7 {[%emt 0:00:31]} Ra8 {[%emt 0:00:18]} 54. Be4+ {[%emt 0:00:13]} Kxc4 {[%emt 0:00:05]} 55. Bxa8 {[%emt 0:00:03]} b3 {[%emt 0:00:06]} 56. e8=Q {[%emt 0:00:07]} b2 {[%emt 0:00:03]} 57. Qa4+ {[%emt 0:00:22]} Kc3 {[%emt 0:00:05]} 58. Qd4+ {[%emt 0:00:19]} Kb3 {[%emt 0:00:07]} 59. Bd5+ {[%emt 0:00:05]} Kc2 {[%emt 0:00:06]} 60. Qd2+ {[%emt 0:00:17]} Kb1 {[%emt 0:00:01]} 61. Qd1# {[%emt 0:00:06]} 1-0

[Event "1st SOA-GM Festival 2024"]
[Site "Bhubaneswar"]
[Date "2024.02.01"]
[Round "7.17"]
[White "Patil Priyanshu"]
[Black "Dere Pushkar"]
[Result "1/2-1/2"]
[ECO "B12"]
[WhiteElo "2022"]
[BlackElo "2191"]
[Annotator "ChessBase"]
[PlyCount "114"]
[EventDate "2024.02.01"]
[EventType "swiss"]
[EventCountry "IND"]
[SourceTitle "playchess.com"]
[Source "ChessBase"]
[SourceQuality "1"]
[TimeControl "5400+30"]

1. e4 {[%emt 0:00:37]} c6 {[%emt 0:00:18]} 2. d4 {[%emt 0:00:02]} d5 {[%emt 0:00:07]} 3. e5 {[%emt 0:00:03]} Bf5 {[%emt 0:00:25]} 4. h4 {[%emt 0:00:02]} h6 {[%emt 0:00:25]} 5. Bd3 {[%emt 0:06:19]} Bxd3 {[%emt 0:02:33]} 6. Qxd3 {[%emt 0:00:02]} e6 {[%emt 0:00:25]} 7. Ne2 {[%emt 0:04:21]} Nd7 {[%emt 0:03:50]} 8. Nd2 {[%emt 0:02:43]} c5 {[%emt 0:01:14]} 9. c4 {[%emt 0:03:24]} Ne7 {[%emt 0:01:29]} 10. Nf4 {[%emt 0:01:54]} cxd4 {[%emt 0:04:33]} 11. cxd5 {[%emt 0:04:01]} Nxd5 {[%emt 0:00:22]} 12. Nxd5 {[%emt 0:00:37]} exd5 {[%emt 0:00:04]} 13. Qxd4 {[%emt 0:00:27]} Rc8 {[%emt 0:30:42]} 14. O-O {[%emt 0:09:30]} Nc5 {[%emt 0:03:53]} 15. Nb3 {[%emt 0:04:59]} Rc6 {[%emt 0:09:42]} 16. Rd1 {[%emt 0:03:43]} Nxb3 {[%emt 0:01:40]} 17. axb3 {[%emt 0:00:04]} Bc5 {[%emt 0:00:27]} 18. Qxd5 {[%emt 0:01:29]} Qe7 {[%emt 0:00:21]} 19. Qe4 {[%emt 0:07:10]} O-O {[%emt 0:00:34]} 20. Be3 {[%emt 0:03:46]} a6 {[%emt 0:04:47]} 21. Bxc5 {[%emt 0:03:41]} Rxc5 {[%emt 0:00:04]} 22. Rd5 {[%emt 0:00:08]} Rxd5 {[%emt 0:04:54]} 23. Qxd5 {[%emt 0:00:02]} Rd8 {[%emt 0:00:06]} 24. Qe4 {[%emt 0:00:11]} Rd2 {[%emt 0:01:33]} 25. Rc1 {[%emt 0:00:07]} Qd7 {[%emt 0:00:43]} 26. Rc2 {[%emt 0:04:18]} Rd1+ {[%emt 0:00:36]} 27. Kh2 {[%emt 0:00:02]} g6 {[%emt 0:04:21]} 28. e6 {[%emt 0:04:03]} Qxe6 {[%emt 0:00:14]} 29. Qxe6 {[%emt 0:00:07]} fxe6 {[%emt 0:00:03]} 30. Rc7 {[%emt 0:00:53]} b5 {[%emt 0:00:32]} 31. Re7 {[%emt 0:05:25]} Rd6 {[%emt 0:01:06]} 32. f3 {[%emt 0:01:02]} Kf8 {[%emt 0:01:20]} 33. Ra7 {[%emt 0:00:02]} h5 {[%emt 0:04:22]} 34. Kg3 {[%emt 0:20:49]} e5 {[%emt 0:00:08]} 35. b4 {[%emt 0:04:19]} Rc6 {[%emt 0:01:26]} 36. b3 {[%emt 0:03:04]} Rd6 {[%emt 0:00:04]} 37. Kh3 {[%emt 0:01:41]} Rd4 {[%emt 0:01:01]} 38. Rxa6 {[%emt 0:00:24]} Kf7 {[%emt 0:00:04]} 39. Rc6 {[%emt 0:00:22]} Rxb4 {[%emt 0:00:06]} 40. Rc3 {[%emt 0:00:01]} Ke6 {[%emt 0:00:46]} 41. Kg3 {[%emt 0:02:07]} Kd5 {[%emt 0:00:38]} 42. Re3 {[%emt 0:01:18]} Rd4 {[%emt 0:01:16]} 43. Rc3 {[%emt 0:00:15]} Rb4 {[%emt 0:02:31]} 44. Re3 {[%emt 0:00:18]} Ke6 {[%emt 0:00:34]} 45. Rc3 {[%emt 0:00:09]} Kf5 {[%emt 0:00:05]} 46. Re3 {[%emt 0:00:40]} Rd4 {[%emt 0:00:11]} 47. Rc3 {[%emt 0:00:17]} b4 {[%emt 0:00:14]} 48. Re3 {[%emt 0:01:05]} Kf6 {[%emt 0:00:04]} 49. Re4 {[%emt 0:01:20]} Kf5 {[%emt 0:02:20]} 50. Rxd4 {[%emt 0:01:24]} exd4 {[%emt 0:00:04]} 51. Kf2 {[%emt 0:00:03]} g5 {[%emt 0:01:57]} 52. hxg5 {[%emt 0:01:40]} Kxg5 {[%emt 0:15:16]} 53. g3 {[%emt 0:00:30]} Kf5 {[%emt 0:00:30]} 54. Ke2 Ke5 {[%emt 0:00:30]} 55. Kd3 {[%emt 0:01:00]} Kf5 {[%emt 0:00:30]} 56. Ke2 {[%emt 0:00:30]} Kg5 {[%emt 0:00:30]} 57. Kf2 Kf5 {[%emt 0:00:30]} 1/2-1/2

[Event "1st SOA-GM Festival 2024"]
[Site "Bhubaneswar"]
[Date "2024.02.01"]
[Round "7.18"]
[White "Priansh Das"]
[Black "Nithin Babu"]
[Result "0-1"]
[ECO "A37"]
[WhiteElo "1910"]
[BlackElo "2177"]
[Annotator "ChessBase"]
[PlyCount "208"]
[EventDate "2024.02.01"]
[EventType "swiss"]
[EventCountry "IND"]
[SourceTitle "playchess.com"]
[Source "ChessBase"]
[SourceQuality "1"]
[TimeControl "5400+30"]

1. c4 {[%emt 0:01:33]} c5 {[%emt 0:00:14]} 2. g3 {[%emt 0:00:04]} g6 {[%emt 0:00:09]} 3. Bg2 {[%emt 0:00:06]} Bg7 {[%emt 0:00:05]} 4. Nf3 {[%emt 0:00:08]} e5 {[%emt 0:00:48]} 5. d3 {[%emt 0:00:35]} Ne7 {[%emt 0:00:30]} 6. Nc3 {[%emt 0:00:12]} d6 {[%emt 0:00:54]} 7. O-O {[%emt 0:00:09]} Nbc6 {[%emt 0:00:14]} 8. Ne1 {[%emt 0:05:06]} Be6 {[%emt 0:01:10]} 9. f4 {[%emt 1:27:07]} O-O {[%emt 0:01:20]} 10. e4 {[%emt 0:00:00]} Nd4 {[%emt 0:02:36]} 11. fxe5 {[%emt 0:00:00]} dxe5 {[%emt 0:00:49]} 12. Nc2 {[%emt 0:00:00]} Nec6 {[%emt 0:02:52]} 13. Ne3 {[%emt 0:00:00]} Qd7 {[%emt 0:04:14]} 14. Ned5 {[%emt 0:00:00]} f5 {[%emt 0:01:54]} 15. Bg5 {[%emt 0:00:00]} Rf7 {[%emt 0:07:31]} 16. exf5 {[%emt 0:00:00]} gxf5 {[%emt 0:00:27]} 17. Qd2 {[%emt 0:00:00]} Raf8 {[%emt 0:02:18]} 18. Rae1 {[%emt 0:00:00]} a6 {[%emt 0:02:51]} 19. Ne2 {[%emt 0:00:00]} Qd6 {[%emt 0:03:28]} 20. Nxd4 {[%emt 0:00:00]} Nxd4 {[%emt 0:04:38]} 21. Rf2 {[%emt 0:00:00]} Bd7 {[%emt 0:02:57]} 22. Ref1 {[%emt 0:00:00]} Bc6 {[%emt 0:02:59]} 23. Kh1 {[%emt 0:00:00]} Kh8 {[%emt 0:04:33]} 24. Be3 {[%emt 0:00:00]} b5 {[%emt 0:02:16]} 25. b3 {[%emt 0:00:00]} Qg6 {[%emt 0:02:18]} 26. Qc1 {[%emt 0:00:00]} b4 {[%emt 0:02:21]} 27. Bxd4 {[%emt 0:00:00]} cxd4 {[%emt 0:00:10]} 28. Nxb4 {[%emt 0:00:00]} Bxg2+ {[%emt 0:00:26]} 29. Kxg2 {[%emt 0:00:00]} Bh6 {[%emt 0:00:42]} 30. Qe1 {[%emt 0:00:00]} Be3 {[%emt 0:00:26]} 31. Nd5 {[%emt 0:00:00]} f4 {[%emt 0:00:38]} 32. Qe2 {[%emt 0:11:30]} h5 {[%emt 0:24:28]} 33. Kh1 {[%emt 0:00:00]} Rg8 {[%emt 0:06:08]} 34. Rg2 {[%emt 0:00:00]} Rfg7 {[%emt 0:01:30]} 35. Nxe3 {[%emt 0:00:00]} dxe3 {[%emt 0:00:10]} 36. Rfg1 {[%emt 0:00:00]} Qg4 {[%emt 0:02:53]} 37. Rf1 {[%emt 0:00:51]} Qf5 {[%emt 0:01:51]} 38. Qf3 {[%emt 0:01:01]} h4 {[%emt 0:01:14]} 39. Qxe3 {[%emt 0:00:54]} hxg3 {[%emt 0:01:02]} 40. Qe4 {[%emt 0:00:25]} Qh5 {[%emt 0:01:11]} 41. d4 {[%emt 0:01:19]} Rg5 {[%emt 0:04:10]} 42. dxe5 {[%emt 0:00:00]} gxh2 {[%emt 0:00:09]} 43. Rxf4 {[%emt 0:00:29]} Qd1+ {[%emt 0:03:47]} 44. Kxh2 {[%emt 0:00:05]} Rxg2+ {[%emt 0:00:15]} 45. Qxg2 {[%emt 0:00:06]} Rxg2+ {[%emt 0:00:17]} 46. Kxg2 {[%emt 0:00:02]} Qe2+ {[%emt 0:00:32]} 47. Rf2 {[%emt 0:01:04]} Qxe5 {[%emt 0:00:24]} 48. Kf3 {[%emt 0:00:05]} Kg7 {[%emt 0:00:51]} 49. Re2 {[%emt 0:00:32]} Qd4 {[%emt 0:00:29]} 50. Re3 {[%emt 0:01:00]} Kf6 {[%emt 0:00:47]} 51. Ke2 {[%emt 0:00:22]} Qb2+ {[%emt 0:00:53]} 52. Kd3 {[%emt 0:00:03]} Qxa2 {[%emt 0:00:25]} 53. Kc3 {[%emt 0:01:28]} Qb2+ {[%emt 0:00:35]} 54. Kd3 Qa2 {[%emt 0:00:25]} 55. Kc3 {[%emt 0:00:12]} Qa5+ {[%emt 0:01:31]} 56. Kc2 {[%emt 0:01:02]} Qf5+ {[%emt 0:01:40]} 57. Rd3 {[%emt 0:00:32]} Ke5 {[%emt 0:00:56]} 58. Kc3 {[%emt 0:00:11]} Ke4 {[%emt 0:00:19]} 59. Rd5 {[%emt 0:00:05]} Qf2 {[%emt 0:00:29]} 60. Kb4 {[%emt 0:00:17]} Qe1+ {[%emt 0:00:28]} 61. Ka4 {[%emt 0:00:14]} Qc3 {[%emt 0:00:35]} 62. Ra5 {[%emt 0:00:49]} Qf6 {[%emt 0:01:14]} 63. Rd5 {[%emt 0:00:24]} Ke3 {[%emt 0:00:45]} 64. Ka5 {[%emt 0:00:27]} Qc3+ {[%emt 0:00:37]} 65. Ka4 {[%emt 0:00:07]} Qb2 {[%emt 0:00:21]} 66. Kb4 {[%emt 0:00:37]} Qa2 {[%emt 0:00:38]} 67. Ra5 {[%emt 0:00:37]} Qd2+ {[%emt 0:00:10]} 68. Ka4 {[%emt 0:00:03]} Qd7+ {[%emt 0:00:16]} 69. Kb4 {[%emt 0:01:07]} Qd6+ {[%emt 0:00:08]} 70. Ka4 {[%emt 0:00:08]} Qc6+ {[%emt 0:00:12]} 71. Ka3 {[%emt 0:00:50]} Kd3 {[%emt 0:00:41]} 72. Rh5 {[%emt 0:00:44]} Qc7 {[%emt 0:00:50]} 73. Kb2 {[%emt 0:00:55]} Kd2 {[%emt 0:00:41]} 74. Rd5+ {[%emt 0:00:05]} Ke3 {[%emt 0:00:23]} 75. Ka3 {[%emt 0:00:22]} Qh2 {[%emt 0:00:34]} 76. Ka4 {[%emt 0:00:41]} Qa2+ {[%emt 0:00:34]} 77. Kb4 {[%emt 0:00:04]} Qa1 {[%emt 0:00:04]} 78. Ra5 {[%emt 0:00:04]} Kd3 {[%emt 0:00:44]} 79. Rd5+ {[%emt 0:00:56]} Ke3 {[%emt 0:00:16]} 80. Ra5 {[%emt 0:00:08]} Qe1+ {[%emt 0:00:00]} 81. Ka4 {[%emt 0:00:03]} Kd4 {[%emt 0:00:00]} 82. Rxa6 {[%emt 0:00:37]} Kc3 {[%emt 0:00:00]} 83. b4 {[%emt 0:02:35]} Qb1 {[%emt 0:00:15]} 84. Rb6 {[%emt 0:00:20]} Qb3+ {[%emt 0:01:19]} 85. Ka5 {[%emt 0:00:29]} Qa3+ {[%emt 0:00:23]} 86. Kb5 {[%emt 0:00:04]} Qxb4+ {[%emt 0:00:18]} 87. Kc6 {[%emt 0:00:06]} Qa4+ {[%emt 0:00:25]} 88. Kd6 {[%emt 0:00:20]} Kxc4 {[%emt 0:00:31]} 89. Rc6+ {[%emt 0:00:07]} Kd4 {[%emt 0:00:06]} 90. Rb6 {[%emt 0:02:52]} Kc4 {[%emt 0:00:54]} 91. Rc6+ {[%emt 0:00:00]} Kd4 {[%emt 0:00:06]} 92. Rb6 {[%emt 0:00:00]} Qa5 {[%emt 0:00:28]} 93. Kc6 {[%emt 0:00:00]} Qd5+ {[%emt 0:00:24]} 94. Kc7 {[%emt 0:00:00]} Kc5 {[%emt 0:00:12]} 95. Rb7 {[%emt 0:00:00]} Kd4 {[%emt 0:00:48]} 96. Rb6 {[%emt 0:00:00]} Kc5 {[%emt 0:00:12]} 97. Rb7 {[%emt 0:00:17]} Qe6 {[%emt 0:01:37]} 98. Kb8 {[%emt 0:00:26]} Qe8+ {[%emt 0:00:46]} 99. Kc7 {[%emt 0:00:08]} Qe5+ {[%emt 0:00:25]} 100. Kd7 {[%emt 0:00:09]} Qf6 {[%emt 0:00:38]} 101. Kc8 {[%emt 0:00:20]} Qa6 {[%emt 0:01:05]} 102. Kc7 {[%emt 0:00:11]} Qa8 {[%emt 0:00:13]} 103. Rb8 {[%emt 0:00:30]} Qc6+ {[%emt 0:00:12]} 104. Kd8 {[%emt 0:00:05]} Kd6 {[%emt 0:00:29]} 0-1